[Event "Live Chess"]
[Site "Chess.com"]
[Date "2023.05.21"]
[Round "-"]
[White "ClassyChameleon"]
[Black "nigelst"]
[Result "0-1"]
[WhiteElo "1083"]
[BlackElo "1706"]
[TimeControl "300"]
[EndTime "6:30:16 PDT"]
[Termination "nigelst won by resignation"]

1. e4 {[%clk 0:04:59.6]} 1... c6 {[%clk 0:04:58.9]} 2. d4 {[%clk 0:04:57]} 2...
d5 {[%clk 0:04:58.2]} 3. exd5 {[%clk 0:04:56.5]} 3... cxd5 {[%clk 0:04:57.4]} 4.
Nf3 {[%clk 0:04:56.1]} 4... Nf6 {[%clk 0:04:56.7]} 5. Bb5+ {[%clk 0:04:54.2]}
5... Bd7 {[%clk 0:04:53.8]} 6. Nc3 {[%clk 0:04:50.7]} 6... Bxb5 {[%clk
0:04:49.5]} 7. Nxb5 {[%clk 0:04:49.6]} 7... Nc6 {[%clk 0:04:43.8]} 8. Bf4 {[%clk
0:04:46.5]} 8... Rc8 {[%clk 0:04:39.8]} 9. O-O {[%clk 0:04:42.4]} 9... e6 {[%clk
0:04:38.2]} 10. c3 {[%clk 0:04:30.3]} 10... a6 {[%clk 0:04:37]} 11. Nc7+ {[%clk
0:03:46.2]} 11... Rxc7 {[%clk 0:04:33.8]} 12. Bxc7 {[%clk 0:03:45.8]} 12... Qxc7
{[%clk 0:04:33]} 13. Qa4 {[%clk 0:03:32.4]} 13... Bd6 {[%clk 0:04:20.2]} 14.
Rac1 {[%clk 0:03:22.5]} 14... O-O {[%clk 0:04:14.5]} 15. c4 {[%clk 0:03:11.3]}
15... dxc4 {[%clk 0:04:08.1]} 16. Qxc4 {[%clk 0:03:10]} 16... Rc8 {[%clk
0:04:00.5]} 17. Ne5 {[%clk 0:02:55.4]} 17... Nxe5 {[%clk 0:03:47.1]} 18. Qxc7
{[%clk 0:02:51.7]} 18... Rxc7 {[%clk 0:03:43.6]} 19. Rxc7 {[%clk 0:02:49.6]}
19... Bxc7 {[%clk 0:03:42.5]} 20. dxe5 {[%clk 0:02:49]} 20... Bxe5 {[%clk
0:03:41]} 21. b3 {[%clk 0:02:45.2]} 21... g6 {[%clk 0:03:38.5]} 22. f3 {[%clk
0:02:42]} 22... Nd5 {[%clk 0:03:37.2]} 23. Re1 {[%clk 0:02:35.2]} 23... Bd4+
{[%clk 0:03:35.6]} 24. Kh1 {[%clk 0:02:31.7]} 24... e5 {[%clk 0:03:33.5]} 25. g3
{[%clk 0:02:22.6]} 25... f6 {[%clk 0:03:31.2]} 26. Kg2 {[%clk 0:02:18.2]} 26...
Nc3 {[%clk 0:03:25.9]} 27. a4 {[%clk 0:02:08.5]} 27... a5 {[%clk 0:03:23.3]} 28.
Kh3 {[%clk 0:01:58.9]} 28... Kf7 {[%clk 0:03:20.6]} 29. Kg4 {[%clk 0:01:53.3]}
29... Nd5 {[%clk 0:03:19]} 30. f4 {[%clk 0:01:50.8]} 30... exf4 {[%clk
0:03:12.4]} 31. gxf4 {[%clk 0:01:49.7]} 31... f5+ {[%clk 0:03:10.9]} 32. Kg5
{[%clk 0:01:47.8]} 32... Kg7 {[%clk 0:03:04.6]} 33. Re6 {[%clk 0:01:33.1]} 33...
Bf6+ {[%clk 0:03:02.8]} 34. Rxf6 {[%clk 0:01:28.1]} 34... Nxf6 {[%clk
0:03:01.4]} 35. Kh4 {[%clk 0:01:27]} 35... Ne4 {[%clk 0:02:58.5]} 36. Kh3 {[%clk
0:01:24]} 36... Nc5 {[%clk 0:02:57.1]} 37. Kg3 {[%clk 0:01:23.2]} 37... Nxb3
{[%clk 0:02:55.8]} 38. Kf3 {[%clk 0:01:23]} 38... Nc5 {[%clk 0:02:54.5]} 39. Ke3
{[%clk 0:01:22.8]} 39... Nxa4 {[%clk 0:02:53.6]} 40. Kd4 {[%clk 0:01:22.3]}
40... b5 {[%clk 0:02:52.4]} 41. Kd3 {[%clk 0:01:20.1]} 41... b4 {[%clk 0:02:51]}
42. Kc4 {[%clk 0:01:19.8]} 42... Nb6+ {[%clk 0:02:48.8]} 43. Kb5 {[%clk
0:01:19.1]} 43... Nd5 {[%clk 0:02:46]} 44. Kxa5 {[%clk 0:01:18]} 44... b3 {[%clk
0:02:45.2]} 45. Kb5 {[%clk 0:01:17.4]} 45... b2 {[%clk 0:02:44.3]} 46. Kc5
{[%clk 0:01:17.1]} 46... Nxf4 {[%clk 0:02:41.5]} 47. Kd4 {[%clk 0:01:13.8]}
47... b1=Q {[%clk 0:02:39.6]} 48. Ke5 {[%clk 0:01:13.5]} 48... Qe4+ {[%clk
0:02:37.8]} 49. Kd6 {[%clk 0:01:12.4]} 49... Qd5+ {[%clk 0:02:36.9]} 0-1

[Event "Live Chess"]
[Site "Chess.com"]
[Date "2023.05.21"]
[Round "-"]
[White "Alfiedog12"]
[Black "lateforthesky"]
[Result "0-1"]
[WhiteElo "916"]
[BlackElo "2110"]
[TimeControl "300"]
[EndTime "6:30:19 PDT"]
[Termination "lateforthesky won by resignation"]

1. d4 {[%clk 0:04:58]} 1... Nf6 {[%clk 0:04:58.5]} 2. Bf4 {[%clk 0:04:57.6]}
2... g6 {[%clk 0:04:57]} 3. Nf3 {[%clk 0:04:57.1]} 3... Bg7 {[%clk 0:04:55.4]}
4. Nbd2 {[%clk 0:04:53.4]} 4... d5 {[%clk 0:04:52.8]} 5. e3 {[%clk 0:04:52.5]}
5... O-O {[%clk 0:04:51.3]} 6. Bd3 {[%clk 0:04:48.1]} 6... c5 {[%clk 0:04:44.7]}
7. c3 {[%clk 0:04:42.5]} 7... b6 {[%clk 0:04:39.2]} 8. Qc2 {[%clk 0:04:33.5]}
8... Bb7 {[%clk 0:04:37.2]} 9. O-O-O {[%clk 0:04:22.2]} 9... Nc6 {[%clk
0:04:35]} 10. h4 {[%clk 0:04:17.4]} 10... Rc8 {[%clk 0:04:19.5]} 11. g3 {[%clk
0:03:51.3]} 11... cxd4 {[%clk 0:04:09.2]} 12. exd4 {[%clk 0:03:49.1]} 12... Nb4
{[%clk 0:04:04.7]} 13. Qb1 {[%clk 0:03:37]} 13... Nxd3+ {[%clk 0:04:03.5]} 14.
Qxd3 {[%clk 0:03:34]} 14... Ne4 {[%clk 0:04:02.6]} 15. Nxe4 {[%clk 0:03:28.6]}
15... dxe4 {[%clk 0:04:00.6]} 16. Qd2 {[%clk 0:03:04.5]} 16... exf3 {[%clk
0:03:58.9]} 17. Bh6 {[%clk 0:03:02.7]} 17... e5 {[%clk 0:03:39.7]} 18. Bxg7
{[%clk 0:02:57.4]} 18... Kxg7 {[%clk 0:03:38.4]} 19. h5 {[%clk 0:02:39.5]} 19...
g5 {[%clk 0:03:12.3]} 20. h6+ {[%clk 0:02:30]} 20... Kh8 {[%clk 0:03:06.3]} 21.
Qe3 {[%clk 0:02:10.6]} 21... exd4 {[%clk 0:02:41.9]} 22. Qe5+ {[%clk 0:02:05.8]}
22... f6 {[%clk 0:02:40]} 23. Qxd4 {[%clk 0:01:47.2]} 23... Qxd4 {[%clk
0:02:38]} 24. Rxd4 {[%clk 0:01:45.9]} 24... Bc6 {[%clk 0:02:11.8]} 25. Rc4
{[%clk 0:01:37.6]} 25... Kg8 {[%clk 0:02:00.5]} 26. Rd1 {[%clk 0:01:32.4]} 26...
Bb5 {[%clk 0:01:25.9]} 27. Rcd4 {[%clk 0:01:22.9]} 27... Rfe8 {[%clk 0:01:20.4]}
28. Rb4 {[%clk 0:01:12]} 28... Bc6 {[%clk 0:01:17.7]} 29. Rd6 {[%clk 0:01:07.6]}
29... Kf7 {[%clk 0:01:09.9]} 30. Rc4 {[%clk 0:01:02.8]} 30... Bb7 {[%clk
0:01:06.9]} 31. Rd7+ {[%clk 0:00:58.9]} 31... Re7 {[%clk 0:01:04.2]} 32. Rxe7+
{[%clk 0:00:56.2]} 32... Kxe7 {[%clk 0:01:02.7]} 33. Rxc8 {[%clk 0:00:54.8]}
33... Bxc8 {[%clk 0:01:01.6]} 34. Kd2 {[%clk 0:00:51.6]} 34... Kf7 {[%clk
0:00:58.3]} 35. Kd3 {[%clk 0:00:50.8]} 35... Kg6 {[%clk 0:00:56.6]} 36. Kd4
{[%clk 0:00:47.9]} 36... Kxh6 {[%clk 0:00:54.6]} 37. Kd5 {[%clk 0:00:46.8]}
37... Kg6 {[%clk 0:00:51.6]} 38. Kd6 {[%clk 0:00:45.2]} 38... h5 {[%clk
0:00:48.4]} 39. Kc7 {[%clk 0:00:43.8]} 39... h4 {[%clk 0:00:46]} 40. g4 {[%clk
0:00:36.2]} 40... h3 {[%clk 0:00:44.8]} 41. Kxc8 {[%clk 0:00:34.4]} 41... h2
{[%clk 0:00:44.3]} 0-1

[Event "Live Chess"]
[Site "Chess.com"]
[Date "2023.05.21"]
[Round "-"]
[White "Berdgross"]
[Black "wot-not"]
[Result "0-1"]
[WhiteElo "697"]
[BlackElo "1549"]
[TimeControl "300"]
[EndTime "6:30:22 PDT"]
[Termination "wot-not won by checkmate"]

1. d4 {[%clk 0:04:57.5]} 1... Nf6 {[%clk 0:04:58.1]} 2. e3 {[%clk 0:04:55.9]}
2... c5 {[%clk 0:04:56.5]} 3. dxc5 {[%clk 0:04:53.5]} 3... Qa5+ {[%clk
0:04:54.7]} 4. Bd2 {[%clk 0:04:49.3]} 4... Qxc5 {[%clk 0:04:53.8]} 5. a3 {[%clk
0:04:45.2]} 5... e5 {[%clk 0:04:52.8]} 6. Bb4 {[%clk 0:04:43.7]} 6... Qb6 {[%clk
0:04:47.5]} 7. Bxf8 {[%clk 0:04:38.4]} 7... Rxf8 {[%clk 0:04:42.4]} 8. Nc3
{[%clk 0:04:34.6]} 8... Qxb2 {[%clk 0:04:40]} 9. Nb5 {[%clk 0:04:26.4]} 9... Na6
{[%clk 0:04:34.6]} 10. Nf3 {[%clk 0:04:03.7]} 10... d6 {[%clk 0:04:26.9]} 11.
Nxd6+ {[%clk 0:03:53.6]} 11... Ke7 {[%clk 0:04:21.5]} 12. Nf5+ {[%clk
0:03:45.1]} 12... Bxf5 {[%clk 0:04:19.3]} 13. Nxe5 {[%clk 0:03:32]} 13... Qxe5
{[%clk 0:04:11.1]} 14. Rb1 {[%clk 0:03:26]} 14... Qa5+ {[%clk 0:04:09.6]} 15.
Ke2 {[%clk 0:03:22.1]} 15... Rfd8 {[%clk 0:04:04.9]} 16. Rxb7+ {[%clk
0:03:16.5]} 16... Kf8 {[%clk 0:04:00]} 17. Qb1 {[%clk 0:02:53.1]} 17... Rd2+
{[%clk 0:03:52.5]} 18. Kf3 {[%clk 0:02:45.2]} 18... Be4+ {[%clk 0:03:51.5]} 19.
Kg3 {[%clk 0:02:38.2]} 19... Qg5+ {[%clk 0:03:47.9]} 20. Kh3 {[%clk 0:02:24.6]}
20... Qg4# {[%clk 0:03:47.1]} 0-1

[Event "Live Chess"]
[Site "Chess.com"]
[Date "2023.05.21"]
[Round "-"]
[White "ProfPoisson"]
[Black "1600x"]
[Result "0-1"]
[WhiteElo "1219"]
[BlackElo "1889"]
[TimeControl "300"]
[EndTime "6:30:35 PDT"]
[Termination "1600x won by checkmate"]

1. e4 {[%clk 0:04:56.6]} 1... d5 {[%clk 0:04:57.1]} 2. exd5 {[%clk 0:04:55]}
2... Nf6 {[%clk 0:04:53.9]} 3. Nc3 {[%clk 0:04:53.2]} 3... Nxd5 {[%clk
0:04:52.2]} 4. Nxd5 {[%clk 0:04:51.5]} 4... Qxd5 {[%clk 0:04:49.7]} 5. Nf3
{[%clk 0:04:50.9]} 5... Qd7 {[%clk 0:04:49.1]} 6. d4 {[%clk 0:04:48]} 6... Nc6
{[%clk 0:04:48.4]} 7. Bb5 {[%clk 0:04:40.9]} 7... Qd5 {[%clk 0:04:45.6]} 8.
Bxc6+ {[%clk 0:04:35.4]} 8... Qxc6 {[%clk 0:04:44.1]} 9. Ne5 {[%clk 0:04:33.6]}
9... Qxg2 {[%clk 0:04:41.3]} 10. Qf3 {[%clk 0:04:24.3]} 10... Qxf3 {[%clk
0:04:33.8]} 11. Nxf3 {[%clk 0:04:22.2]} 11... Bg4 {[%clk 0:04:31.7]} 12. Ke2
{[%clk 0:04:12.5]} 12... O-O-O {[%clk 0:04:07.3]} 13. Rg1 {[%clk 0:03:34]} 13...
Bh5 {[%clk 0:03:53.2]} 14. c3 {[%clk 0:03:21]} 14... e6 {[%clk 0:03:49.9]} 15.
Rg3 {[%clk 0:02:55.6]} 15... Bd6 {[%clk 0:03:22.2]} 16. Rh3 {[%clk 0:02:49.2]}
16... Bxf3+ {[%clk 0:03:13.4]} 17. Rxf3 {[%clk 0:02:47]} 17... f6 {[%clk
0:03:04.2]} 18. Bf4 {[%clk 0:02:43.7]} 18... Bxf4 {[%clk 0:03:02.6]} 19. Rxf4
{[%clk 0:02:41.7]} 19... h5 {[%clk 0:02:58.8]} 20. Rd1 {[%clk 0:02:37.1]} 20...
Kd7 {[%clk 0:02:56.7]} 21. c4 {[%clk 0:02:27.4]} 21... Ke8 {[%clk 0:02:56.6]}
22. d5 {[%clk 0:02:20.2]} 22... exd5 {[%clk 0:02:53.7]} 23. Rxd5 {[%clk
0:02:14.7]} 23... Rxd5 {[%clk 0:02:47.3]} 24. cxd5 {[%clk 0:02:11.7]} 24... Kd7
{[%clk 0:02:45.6]} 25. Kd3 {[%clk 0:02:07.5]} 25... c6 {[%clk 0:02:41]} 26.
dxc6+ {[%clk 0:02:04.8]} 26... bxc6 {[%clk 0:02:39.6]} 27. h4 {[%clk 0:02:02.7]}
27... Kc7 {[%clk 0:02:38.4]} 28. Re4 {[%clk 0:02:00.1]} 28... Rd8+ {[%clk
0:02:36.3]} 29. Kc3 {[%clk 0:01:57.1]} 29... g5 {[%clk 0:02:34.7]} 30. hxg5
{[%clk 0:01:52.8]} 30... fxg5 {[%clk 0:02:24.3]} 31. Re5 {[%clk 0:01:51.2]}
31... Rg8 {[%clk 0:02:20.2]} 32. b4 {[%clk 0:01:46.7]} 32... h4 {[%clk
0:02:11.7]} 33. Re7+ {[%clk 0:01:31.6]} 33... Kb6 {[%clk 0:02:09.3]} 34. Rh7
{[%clk 0:01:29.8]} 34... Rf8 {[%clk 0:02:01.9]} 35. Rg7 {[%clk 0:01:24.4]} 35...
Rxf2 {[%clk 0:01:56.5]} 36. Rxg5 {[%clk 0:01:22.6]} 36... h3 {[%clk 0:01:55.2]}
37. a4 {[%clk 0:01:18]} 37... h2 {[%clk 0:01:51.8]} 38. Rh5 {[%clk 0:01:10.9]}
38... Rg2 {[%clk 0:01:49.6]} 39. Kc4 {[%clk 0:00:59.2]} 39... a6 {[%clk
0:01:45.4]} 40. a5+ {[%clk 0:00:52.3]} 40... Kb7 {[%clk 0:01:43.1]} 41. Kc5
{[%clk 0:00:49.5]} 41... Rg5+ {[%clk 0:01:38.8]} 42. Rxg5 {[%clk 0:00:45.4]}
42... h1=Q {[%clk 0:01:37.4]} 43. Rg7+ {[%clk 0:00:41.7]} 43... Kc8 {[%clk
0:01:34.6]} 44. Kb6 {[%clk 0:00:39.9]} 44... Qd5 {[%clk 0:01:32]} 45. Rc7+
{[%clk 0:00:21.5]} 45... Kd8 {[%clk 0:01:29.4]} 46. Rxc6 {[%clk 0:00:19.2]}
46... Qb5+ {[%clk 0:01:25.1]} 47. Ka7 {[%clk 0:00:12.5]} 47... Qxc6 {[%clk
0:01:23.5]} 48. b5 {[%clk 0:00:11.4]} 48... Qxb5 {[%clk 0:01:22.5]} 49. Ka8
{[%clk 0:00:09.1]} 49... Kc7 {[%clk 0:01:20]} 50. Ka7 {[%clk 0:00:07.5]} 50...
Qb7# {[%clk 0:01:18.1]} 0-1

[Event "Live Chess"]
[Site "Chess.com"]
[Date "2023.05.21"]
[Round "-"]
[White "mattihelenius2"]
[Black "shohrehbayat"]
[Result "0-1"]
[WhiteElo "491"]
[BlackElo "2055"]
[TimeControl "300"]
[EndTime "6:30:41 PDT"]
[Termination "shohrehbayat won by resignation"]

1. d4 {[%clk 0:04:56]} 1... e6 {[%clk 0:04:59.2]} 2. c4 {[%clk 0:04:54.8]} 2...
d5 {[%clk 0:04:58.7]} 3. Nc3 {[%clk 0:04:50.3]} 3... c6 {[%clk 0:04:57.9]} 4. b3
{[%clk 0:04:37]} 4... f5 {[%clk 0:04:51.9]} 5. Nf3 {[%clk 0:04:34.7]} 5... Nf6
{[%clk 0:04:51.1]} 6. Ne5 {[%clk 0:04:33]} 6... Bd6 {[%clk 0:04:49.7]} 7. Bf4
{[%clk 0:04:28.6]} 7... O-O {[%clk 0:04:48.1]} 8. e3 {[%clk 0:04:13.9]} 8... Bb4
{[%clk 0:04:46.8]} 9. Qd2 {[%clk 0:04:11]} 9... Ne4 {[%clk 0:04:45.6]} 10. Qd3
{[%clk 0:03:43.9]} 10... Bxc3+ {[%clk 0:04:43.6]} 11. Kd1 {[%clk 0:03:36.2]}
11... Nxf2+ {[%clk 0:04:42.2]} 12. Kc1 {[%clk 0:03:31.5]} 12... Nxd3+ {[%clk
0:04:40.8]} 0-1

[Event "Live Chess"]
[Site "Chess.com"]
[Date "2023.05.21"]
[Round "-"]
[White "Brooms1989"]
[Black "MarkLim1"]
[Result "1/2-1/2"]
[WhiteElo "1162"]
[BlackElo "1705"]
[TimeControl "300"]
[EndTime "6:30:43 PDT"]
[Termination "Game drawn - insufficient material"]

1. e4 {[%clk 0:04:58.8]} 1... c6 {[%clk 0:04:58.9]} 2. d4 {[%clk 0:04:56.5]}
2... d5 {[%clk 0:04:58.2]} 3. f3 {[%clk 0:04:55]} 3... g6 {[%clk 0:04:55.1]} 4.
c3 {[%clk 0:04:49]} 4... Bg7 {[%clk 0:04:53.2]} 5. Bd3 {[%clk 0:04:46.9]} 5...
e5 {[%clk 0:04:50.4]} 6. Be3 {[%clk 0:04:42.5]} 6... dxe4 {[%clk 0:04:42.1]} 7.
fxe4 {[%clk 0:04:40.6]} 7... exd4 {[%clk 0:04:36.8]} 8. cxd4 {[%clk 0:04:37.8]}
8... Bxd4 {[%clk 0:04:35.3]} 9. Bxd4 {[%clk 0:04:36.6]} 9... Qxd4 {[%clk
0:04:33.9]} 10. Nc3 {[%clk 0:04:32.2]} 10... Ne7 {[%clk 0:04:18.9]} 11. Nf3
{[%clk 0:04:30.9]} 11... Qd7 {[%clk 0:04:13.8]} 12. O-O {[%clk 0:04:29.4]} 12...
O-O {[%clk 0:04:12.7]} 13. Bc4 {[%clk 0:04:15.7]} 13... Qxd1 {[%clk 0:04:10.9]}
14. Raxd1 {[%clk 0:04:15.6]} 14... b5 {[%clk 0:04:07.2]} 15. Bb3 {[%clk
0:04:13.9]} 15... a5 {[%clk 0:04:06.2]} 16. a3 {[%clk 0:04:11.4]} 16... Na6
{[%clk 0:04:01.7]} 17. Rf2 {[%clk 0:03:58]} 17... Nc5 {[%clk 0:03:56.9]} 18. Ba2
{[%clk 0:03:57.4]} 18... Be6 {[%clk 0:03:55.7]} 19. Bxe6 {[%clk 0:03:55.2]}
19... Nxe6 {[%clk 0:03:54]} 20. e5 {[%clk 0:03:50.3]} 20... Rfd8 {[%clk
0:03:51]} 21. Rfd2 {[%clk 0:03:47.8]} 21... Rxd2 {[%clk 0:03:49.2]} 22. Rxd2
{[%clk 0:03:47.7]} 22... Rd8 {[%clk 0:03:48.3]} 23. Rxd8+ {[%clk 0:03:43.1]}
23... Nxd8 {[%clk 0:03:47.2]} 24. Nd4 {[%clk 0:03:41.7]} 24... Ne6 {[%clk
0:03:37.7]} 25. Nxe6 {[%clk 0:03:38]} 25... fxe6 {[%clk 0:03:36.7]} 26. Kf2
{[%clk 0:03:37.2]} 26... Kf8 {[%clk 0:03:35.5]} 27. Ne4 {[%clk 0:03:31.9]} 27...
Nd5 {[%clk 0:03:32.3]} 28. Nd6 {[%clk 0:03:24.8]} 28... b4 {[%clk 0:03:26.5]}
29. axb4 {[%clk 0:03:22]} 29... axb4 {[%clk 0:03:24.6]} 30. Ke2 {[%clk
0:03:20.2]} 30... c5 {[%clk 0:03:23.7]} 31. Kd3 {[%clk 0:03:18.7]} 31... Nf4+
{[%clk 0:03:20.5]} 32. Kc4 {[%clk 0:03:16.5]} 32... Nxg2 {[%clk 0:03:19.1]} 33.
Kxc5 {[%clk 0:03:15.3]} 33... b3 {[%clk 0:03:15.8]} 34. Kc4 {[%clk 0:03:12.8]}
34... Ne3+ {[%clk 0:03:11.9]} 35. Kxb3 {[%clk 0:03:10.6]} 35... Ng4 {[%clk
0:03:10.9]} 36. h3 {[%clk 0:03:08.5]} 36... Nxe5 {[%clk 0:03:09.7]} 37. Kc3
{[%clk 0:03:05.8]} 37... Ke7 {[%clk 0:03:06.8]} 38. Ne4 {[%clk 0:03:02.4]} 38...
h6 {[%clk 0:02:55.9]} 39. b4 {[%clk 0:03:00.8]} 39... g5 {[%clk 0:02:54.7]} 40.
b5 {[%clk 0:02:59.3]} 40... Kd7 {[%clk 0:02:51.7]} 41. Kb4 {[%clk 0:02:58.8]}
41... Kc7 {[%clk 0:02:50]} 42. Ka5 {[%clk 0:02:58.1]} 42... g4 {[%clk
0:02:46.2]} 43. hxg4 {[%clk 0:02:56.1]} 43... Nxg4 {[%clk 0:02:44.9]} 44. Ka6
{[%clk 0:02:55.3]} 44... Kb8 {[%clk 0:02:38.1]} 45. b6 {[%clk 0:02:50.9]} 45...
Ne5 {[%clk 0:02:35.9]} 46. Nc5 {[%clk 0:02:48.3]} 46... h5 {[%clk 0:02:32.9]}
47. Nxe6 {[%clk 0:02:47.2]} 47... h4 {[%clk 0:02:29.1]} 48. Nf4 {[%clk
0:02:44.7]} 48... Nf7 {[%clk 0:02:00.1]} 49. b7 {[%clk 0:02:15.2]} 49... Nd6
{[%clk 0:01:51.8]} 50. Kb6 {[%clk 0:02:10]} 50... Nxb7 {[%clk 0:01:48.9]} 51.
Kc6 {[%clk 0:02:08.2]} 51... Kc8 {[%clk 0:01:31]} 52. Kd5 {[%clk 0:02:06.8]}
52... Kd7 {[%clk 0:01:29.8]} 53. Ke4 {[%clk 0:02:05.9]} 53... Ke7 {[%clk
0:01:24.4]} 54. Kf3 {[%clk 0:02:04.5]} 54... Kf6 {[%clk 0:01:21.5]} 55. Kg4
{[%clk 0:02:03.2]} 55... Nd6 {[%clk 0:01:19]} 56. Kxh4 {[%clk 0:02:02.4]}
1/2-1/2

[Event "Live Chess"]
[Site "Chess.com"]
[Date "2023.05.21"]
[Round "-"]
[White "elephantgerrald"]
[Black "diana21strabt"]
[Result "0-1"]
[WhiteElo "686"]
[BlackElo "1769"]
[TimeControl "300"]
[EndTime "6:30:46 PDT"]
[Termination "diana21strabt won by checkmate"]

1. e4 {[%clk 0:04:58.4]} 1... d5 {[%clk 0:04:59]} 2. exd5 {[%clk 0:04:56.9]}
2... Qxd5 {[%clk 0:04:58.2]} 3. Nc3 {[%clk 0:04:53.5]} 3... Qa5 {[%clk
0:04:57.1]} 4. Nf3 {[%clk 0:04:48.5]} 4... Nf6 {[%clk 0:04:55.9]} 5. a3 {[%clk
0:04:44]} 5... Bg4 {[%clk 0:04:54.6]} 6. Be2 {[%clk 0:04:41.9]} 6... Nc6 {[%clk
0:04:52.9]} 7. b4 {[%clk 0:04:40.1]} 7... Nxb4 {[%clk 0:04:51.5]} 8. axb4 {[%clk
0:04:36.9]} 8... Qxa1 {[%clk 0:04:49.4]} 9. Ne5 {[%clk 0:04:35]} 9... Bxe2
{[%clk 0:04:47]} 10. Nxe2 {[%clk 0:04:32.6]} 10... e6 {[%clk 0:04:41.8]} 11. Nf3
{[%clk 0:04:29.7]} 11... O-O-O {[%clk 0:04:39.8]} 12. O-O {[%clk 0:04:27.8]}
12... Qa6 {[%clk 0:04:36.1]} 13. c3 {[%clk 0:04:19.4]} 13... Ne4 {[%clk
0:04:29.5]} 14. Ne5 {[%clk 0:04:15.7]} 14... Nd6 {[%clk 0:04:23]} 15. c4 {[%clk
0:04:09.9]} 15... f6 {[%clk 0:04:18.2]} 16. c5 {[%clk 0:04:08.1]} 16... fxe5
{[%clk 0:04:15.6]} 17. cxd6 {[%clk 0:04:06.8]} 17... Bxd6 {[%clk 0:04:14.4]} 18.
Bb2 {[%clk 0:04:03.5]} 18... Qb5 {[%clk 0:04:08.6]} 19. d4 {[%clk 0:03:55.6]}
19... exd4 {[%clk 0:04:06]} 20. Qxd4 {[%clk 0:03:53.4]} 20... Qxe2 {[%clk
0:04:01.2]} 21. Qxa7 {[%clk 0:03:43.1]} 21... Qh5 {[%clk 0:03:54.4]} 22. Bxg7
{[%clk 0:03:40.2]} 22... Qxh2# {[%clk 0:03:52.4]} 0-1

[Event "Live Chess"]
[Site "Chess.com"]
[Date "2023.05.21"]
[Round "-"]
[White "onemoretime1975"]
[Black "JanMur7"]
[Result "0-1"]
[WhiteElo "1860"]
[BlackElo "1968"]
[TimeControl "300"]
[EndTime "6:30:55 PDT"]
[Termination "JanMur7 won by checkmate"]

1. e4 {[%clk 0:04:58.1]} 1... e5 {[%clk 0:04:58.6]} 2. Nf3 {[%clk 0:04:56.5]}
2... Nc6 {[%clk 0:04:58.5]} 3. Bc4 {[%clk 0:04:55]} 3... Bc5 {[%clk 0:04:57.4]}
4. c3 {[%clk 0:04:51.3]} 4... Nf6 {[%clk 0:04:56.5]} 5. d3 {[%clk 0:04:50.1]}
5... a6 {[%clk 0:04:55.5]} 6. a3 {[%clk 0:04:48]} 6... d6 {[%clk 0:04:53.9]} 7.
h3 {[%clk 0:04:45.8]} 7... h6 {[%clk 0:04:52.8]} 8. O-O {[%clk 0:04:43.6]} 8...
g5 {[%clk 0:04:52]} 9. Be3 {[%clk 0:04:40.1]} 9... g4 {[%clk 0:04:45.2]} 10.
hxg4 {[%clk 0:04:31.4]} 10... Bxg4 {[%clk 0:04:45.1]} 11. Bxc5 {[%clk
0:04:29.5]} 11... dxc5 {[%clk 0:04:44.8]} 12. Nbd2 {[%clk 0:04:23.2]} 12... h5
{[%clk 0:04:43]} 13. Qb3 {[%clk 0:04:19.4]} 13... Qd7 {[%clk 0:04:38.2]} 14. Ng5
{[%clk 0:04:11.6]} 14... Nd8 {[%clk 0:04:32.4]} 15. f3 {[%clk 0:04:03.7]} 15...
Be6 {[%clk 0:04:11.1]} 16. Nxe6 {[%clk 0:03:59.7]} 16... Nxe6 {[%clk 0:04:11]}
17. Bxe6 {[%clk 0:03:57.5]} 17... Qxe6 {[%clk 0:04:07.7]} 18. Qxe6+ {[%clk
0:03:54.8]} 18... fxe6 {[%clk 0:04:05.9]} 19. f4 {[%clk 0:03:54.1]} 19... exf4
{[%clk 0:04:03.4]} 20. Rxf4 {[%clk 0:03:52.3]} 20... Ke7 {[%clk 0:04:02.4]} 21.
Raf1 {[%clk 0:03:49.5]} 21... Raf8 {[%clk 0:04:01.2]} 22. Nc4 {[%clk 0:03:47.5]}
22... Ng4 {[%clk 0:03:50.6]} 23. Rxf8 {[%clk 0:03:36.7]} 23... Rxf8 {[%clk
0:03:49.1]} 24. Rxf8 {[%clk 0:03:34.8]} 24... Kxf8 {[%clk 0:03:49]} 25. g3
{[%clk 0:03:30]} 25... b5 {[%clk 0:03:36.1]} 26. Nd2 {[%clk 0:03:18]} 26... Ne5
{[%clk 0:03:34.3]} 27. d4 {[%clk 0:03:14.3]} 27... Nd3 {[%clk 0:03:29]} 28. b3
{[%clk 0:03:00.4]} 28... cxd4 {[%clk 0:03:23]} 29. cxd4 {[%clk 0:02:58.8]} 29...
Ne1 {[%clk 0:03:22.9]} 30. d5 {[%clk 0:02:51.2]} 30... exd5 {[%clk 0:03:19.3]}
31. exd5 {[%clk 0:02:49.6]} 31... Nc2 {[%clk 0:03:18.1]} 32. a4 {[%clk 0:02:48]}
32... Ne3 {[%clk 0:03:07.4]} 33. axb5 {[%clk 0:02:43.8]} 33... axb5 {[%clk
0:03:05.8]} 34. d6 {[%clk 0:02:34.9]} 34... cxd6 {[%clk 0:03:03.5]} 35. Ne4
{[%clk 0:02:33.8]} 35... Ke7 {[%clk 0:03:01.3]} 36. Nc3 {[%clk 0:02:27.7]} 36...
b4 {[%clk 0:02:52]} 37. Na2 {[%clk 0:02:26.1]} 37... Nc2 {[%clk 0:02:34.7]} 38.
Kh2 {[%clk 0:02:18.7]} 38... Kf6 {[%clk 0:02:31.4]} 39. Kh3 {[%clk 0:02:17.8]}
39... Kg5 {[%clk 0:02:27.2]} 40. Nc1 {[%clk 0:02:16.6]} 40... d5 {[%clk
0:02:20.6]} 41. Nd3 {[%clk 0:02:15]} 41... d4 {[%clk 0:02:17.9]} 42. Kg2 {[%clk
0:02:11.8]} 42... Kg4 {[%clk 0:01:50.8]} 43. Kf2 {[%clk 0:02:07.9]} 43... Na1
{[%clk 0:01:34.5]} 44. Nc5 {[%clk 0:02:01.9]} 44... Nc2 {[%clk 0:01:31]} 45. Nd3
{[%clk 0:02:00.5]} 45... Kg5 {[%clk 0:00:59.2]} 46. Kf3 {[%clk 0:01:55.1]} 46...
Kf5 {[%clk 0:00:57.9]} 47. Ke2 {[%clk 0:01:30.4]} 47... Ke4 {[%clk 0:00:44.7]}
48. Nc5+ {[%clk 0:01:27.4]} 48... Kd5 {[%clk 0:00:35.3]} 49. Nd3 {[%clk
0:01:25.1]} 49... Na1 {[%clk 0:00:33.9]} 50. Nxb4+ {[%clk 0:01:16.7]} 50... Ke4
{[%clk 0:00:32.4]} 51. Nd3 {[%clk 0:01:10.5]} 51... Nxb3 {[%clk 0:00:29.2]} 52.
Nf2+ {[%clk 0:01:09.4]} 52... Ke5 {[%clk 0:00:26]} 53. Kd3 {[%clk 0:01:08.1]}
53... Nc5+ {[%clk 0:00:24.4]} 54. Kd2 {[%clk 0:01:06.4]} 54... Ne4+ {[%clk
0:00:22.9]} 55. Nxe4 {[%clk 0:01:04.9]} 55... Kxe4 {[%clk 0:00:22.8]} 56. Ke2
{[%clk 0:01:03.4]} 56... d3+ {[%clk 0:00:22]} 57. Kd2 {[%clk 0:01:02.4]} 57...
Kd4 {[%clk 0:00:21.5]} 58. Kd1 {[%clk 0:00:58.6]} 58... Ke3 {[%clk 0:00:20.2]}
59. Ke1 {[%clk 0:00:57.2]} 59... d2+ {[%clk 0:00:18.7]} 60. Kd1 {[%clk
0:00:55.9]} 60... Kd3 {[%clk 0:00:17.7]} 61. g4 {[%clk 0:00:52.7]} 61... h4
{[%clk 0:00:16.8]} 62. g5 {[%clk 0:00:51.5]} 62... h3 {[%clk 0:00:16.7]} 63. g6
{[%clk 0:00:50.8]} 63... h2 {[%clk 0:00:16.6]} 64. g7 {[%clk 0:00:50]} 64...
h1=Q# {[%clk 0:00:16.5]} 0-1